{"text_format":"1","workbook":"xlsx","n_sheets":6,"sheets":["Instructions","Authorized Placement Monitoring","Appendix A-Gross income","Appendix B-Use of funds","Appendix C-Employee description","List of establishments"],"not_rendered":{"charts":0,"images":1,"macros":0,"external_links":3,"defined_names":24,"comments":0,"pivot_tables":0},"unopened":[],"bounds":{"document_bytes":16777216,"sheet_cells":100000,"rows_first":2000,"rows_last":500,"rows_between":2000,"halvings":0,"cell_chars":16384,"cell_head_chars":4096},"cells_cut":0,"cells_raw":0,"read":"whole","date_system":"1900"}

{"sheet":"Instructions","index":0,"n_rows":28,"n_cols":14,"rows_kept":28,"cut":false,"hidden":false,"merged":[[10,0,10,37],[9,0,9,37],[8,0,8,37],[5,0,5,37],[6,0,6,37],[7,1,7,37],[27,1,27,33],[26,0,26,33],[12,0,12,37],[14,0,14,37],[22,1,22,33],[18,0,18,37],[23,0,23,33],[24,0,24,33],[25,0,25,33],[15,0,15,37],[16,0,16,37],[20,0,20,33],[19,0,19,37],[21,0,21,37],[13,0,13,37],[17,0,17,37],[0,0,0,12],[0,13,0,37],[1,0,1,37],[2,0,2,37],[4,0,4,37],[3,0,3,37]]}
[null,null,null,null,null,null,null,null,null,null,null,null,null,"Synergy Capital\n(version: 2021-06)"]
["Instructions – Authorized Placement Monitoring"]
["This document indicates the procedure to follow to obtain a notice of compliance certifying that the corporation is respecting the eligibility conditions for a qualified corporation to which an authorized placement certificate has been issued and which has issued shares of its capital stock to a \"qualified investor.\" Obtaining a notice of compliance is required for the particular taxation year or particular fiscal period that includes the date of filing of the application for the authorized placement certificate and for each taxation year or fiscal period that begins in the 48-month period following the end of the particular taxation year or particular fiscal period, as applicable."]
["The \"Authorized Placement Monitoring\" form must be filed at most six months after the end of the qualified corporation's particular taxation year or particular fiscal period."]
["We strongly encourage you to consult the detailed fact sheet about the synergy capital tax credit available on our website before completing this form. Be sure to use the most up-to-date version of the form. In addition, you can consult the budget documents issued by the Ministère des Finances on March 10, 2020, and March 25, 2021, concerning the sectoral parameters of this tax measure. "]
[]
["A complete application includes all the following mandatory documents:"]
[" -","Duly completed and signed \"Authorized Placement Monitoring\" form as well as all the mandatory documents indicated in section 5."]
[]
["AGREEMENT TO EXCHANGE INFORMATION"]
["On October 7, 2009, Investissement Québec and Revenu Québec reached an agreement entitled \"Entente portant sur l'échange de renseignements nécessaires à l'administration de mesures fiscales ou à l’application d’une loi fiscale\" [agreement on the exchange of information required for the administration of fiscal measures or the enforcement of tax legislation]. Under that agreement, the two organizations can share information required to carry out their respective mandates without being required to ask for the consent of the individual in question. Information is shared with Revenu Québec only under this agreement. The Commission d'accès à l'information du Québec has approved this agreement, after reviewing the nature of the information provided and the reasons for disclosure, and ensuring that appropriate security and confidentiality measures are in place."]
[]
[]
["REQUIRED FEES"]
["Investissement Québec charges fees for issuing certificates. For more information on these fees, consult the fee schedule available on the website. "]
[]
["MAILING ADDRESSES AND METHOD FOR SUBMITTING THE AUTHORIZED PLACEMENT MONITORING FORM\n"]
["We recommend that you send your signed form by email to expedite processing. Please enclose the duly signed form in PDF format. \n\nThe form can also be sent by mail to one of the addresses below."]
["In all situations, make sure you send the electronic file of the form in Excel format.\n"]
["For companies whose head office is located in the following regions:\n\nBas-Saint-Laurent;\nCapitale-Nationale;\nChaudière-Appalaches;\nCentre-du-Québec;\nCôte-Nord;\nEstrie;\nGaspésie-Îles-de-la-Madeleine;\nLanaudière;\nMauricie;\nMontérégie;\nNord-du-Québec;\nSaguenay-Lac-Saint-Jean."]
[]
["Investissement Québec\nDirection, Mesures fiscales (Québec)\nÉdifice Iberville 1\n1195, avenue Lavigerie, bureau 060\nQuébec (Québec)  G1V 4N3\nFax: 418 528-8480"]
[" -","by email to: mfquebec@invest-quebec.com"]
[]
["For companies whose head office is located in the following regions:\n\nAbitibi-Témiscamingue;\nLaval;\nLaurentides;\nMontréal;\nOutaouais."]
[]
["Investissement Québec\nDirection, Mesures fiscales (Montréal)\n1001, boulevard Robert-Bourassa, bureau 1000\nMontréal (Québec)  H3B 4L4"]
[" -","by email to: mfmontreal@invest-quebec.com"]

{"sheet":"Authorized Placement Monitoring","index":1,"n_rows":211,"n_cols":34,"rows_kept":211,"cut":false,"hidden":false,"merged":[[251,0,251,18],[251,20,251,28],[251,29,251,35],[94,0,94,33],[245,0,246,36],[247,0,247,2],[247,3,247,7],[247,8,247,36],[248,0,248,36],[249,0,249,18],[249,20,249,28],[249,29,249,35],[250,29,250,35],[164,0,164,34],[212,0,212,34],[207,0,207,34],[210,0,210,20],[171,1,171,30],[196,0,196,33],[209,0,209,20],[127,1,127,30],[117,1,117,30],[210,23,210,34],[111,1,111,30],[57,29,57,30],[58,0,58,28],[57,0,57,28],[43,0,43,38],[56,0,56,34],[54,0,54,38],[205,0,205,33],[115,1,115,30],[121,1,121,30],[166,1,166,28],[192,1,192,18],[197,1,198,34],[201,1,201,38],[203,0,203,33],[53,14,53,15],[53,16,53,21],[209,23,209,34],[66,14,66,34],[53,0,53,7],[53,8,53,13],[188,1,188,31],[191,0,193,0],[130,1,130,30],[208,0,208,34],[206,0,206,34],[199,0,199,34],[202,0,202,34],[131,1,131,29],[151,30,151,33],[195,0,195,29],[194,1,194,26],[126,29,126,30],[68,0,68,33],[157,1,157,24],[183,1,183,29],[179,1,179,30],[172,1,172,29],[169,1,169,29],[175,1,175,29],[197,0,198,0],[0,0,0,12],[0,13,0,34],[1,0,1,34],[4,0,4,34],[7,0,7,7],[7,10,7,17],[7,20,7,27],[7,29,7,34],[2,0,2,34],[3,0,3,34],[6,0,6,34],[5,0,5,30],[177,1,177,30],[82,0,82,33],[85,0,85,28],[25,0,25,34],[134,1,134,31],[128,31,128,32],[154,30,154,33],[159,30,159,33],[125,1,125,30],[129,1,129,30],[143,1,143,25],[143,30,143,33],[142,26,142,27],[142,30,142,33],[145,1,145,23],[147,1,147,22],[149,1,149,24],[152,1,152,23],[155,1,156,24],[37,33,37,34],[37,27,37,32],[83,0,83,28],[74,1,74,28],[157,30,157,33],[100,36,100,41],[38,27,38,31],[17,0,17,25],[80,0,80,33],[53,22,53,38],[87,0,87,33],[86,0,86,27],[81,0,81,33],[69,0,69,34],[72,0,72,27],[44,27,44,31],[46,27,46,31],[48,27,48,31],[50,27,50,31],[50,3,50,24],[26,26,26,34],[23,26,23,34],[24,0,24,34],[100,11,100,25],[76,1,76,28],[92,2,92,6],[27,0,27,34],[60,0,60,28],[18,0,18,25],[8,29,8,33],[88,0,88,33],[13,0,13,34],[32,27,32,31],[46,3,46,16],[48,3,48,16],[52,22,52,38],[52,8,52,13],[52,14,52,15],[62,0,62,28],[63,0,63,34],[55,0,55,34],[46,18,46,25],[8,0,8,7],[8,10,8,17],[9,0,9,34],[14,0,14,25],[52,16,52,21],[41,27,41,31],[52,0,52,7],[39,0,39,34],[10,0,10,25],[38,33,38,34],[37,0,37,25],[29,27,29,31],[11,0,11,25],[12,0,12,34],[14,26,14,34],[15,0,15,34],[40,0,40,25],[40,27,40,34],[41,0,41,25],[33,0,33,34],[34,0,34,34],[19,0,19,34],[20,0,20,34],[23,0,23,25],[32,0,32,25],[29,33,29,34],[28,27,28,32],[26,0,26,25],[29,0,29,25],[35,26,35,34],[16,0,16,25],[18,26,18,34],[38,0,38,25],[28,0,28,25],[67,0,67,34],[65,8,65,13],[66,0,66,7],[66,8,66,13],[30,0,30,34],[191,1,191,29],[136,1,136,30],[193,1,193,30],[141,1,141,33],[160,1,160,24],[162,1,162,24],[161,1,161,24],[161,30,161,33],[189,1,189,28],[180,1,180,29],[178,1,178,29],[168,1,168,29],[186,1,186,29],[159,1,159,23],[145,30,145,33],[147,30,147,33],[139,1,139,30],[138,1,138,30],[118,1,118,28],[28,33,28,34],[41,32,41,34],[36,0,36,34],[35,0,35,25],[115,33,115,62],[135,1,135,30],[133,1,133,30],[8,20,8,27],[101,36,101,37],[132,32,133,32],[78,1,78,28],[90,0,90,33],[92,27,92,32],[105,1,105,9],[101,11,101,25],[102,11,102,25],[106,0,106,33],[105,11,105,25],[105,27,105,32],[99,1,99,9],[100,1,100,9],[101,1,101,9],[102,1,102,9],[103,1,103,9],[151,1,151,24],[182,1,182,29],[174,1,174,29],[149,30,149,33],[165,1,165,30],[154,1,154,24],[65,0,65,7],[21,0,21,25],[21,26,21,34],[104,1,104,9],[101,27,101,32],[99,27,99,32],[100,27,100,32],[99,11,99,25],[123,0,123,25],[109,1,109,30],[102,27,102,32],[107,0,107,34],[112,1,112,30],[114,1,114,30],[120,1,120,30],[31,0,31,25],[31,27,31,34],[48,18,48,25]]}
[null,null,null,null,null,null,null,null,null,null,null,null,null,{"$f":"Instructions!N1","v":"Synergy Capital\n(version: 2021-06)"}]
[" AUTHORIZED PLACEMENT MONITORING"]
["Before completing this form, please read the Instructions tab"]
["1. IDENTIFICATION OF THE CORPORATION"]
["Name of the corporation "]
[]
[]
["NEQ (Québec enterprise number)",null,null,null,null,null,null,null,null,null,"IQ business number*",null,null,null,null,null,null,null,null,null,"IQ file number*",null,null,null,null,null,null,null,null,"Date of incorporation"]
[]
["*Business or file number assigned by Investissement Québec (IQ) for the synergy capital tax credit. You will find these numbers on the correspondence received from IQ."]
[]
[]
[]
["URL of corporation's website "]
[]
[]
["Addresses of all establishments – Enter the principal address here   "]
["(if more than one establishment, please append the complete list)"]
[]
[]
["Mailing address"]
[]
[]
[]
[]
["Authorized corporation representative "]
[]
[]
["Representative's title (e.g., president of the corporation)",null,null,null,null,null,null,null,null,null,null,null,null,null,null,null,null,null,null,null,null,null,null,null,null,null,null,"Telephone",null,null,null,null,null,"Ext."]
[]
[]
["Representative's email address",null,null,null,null,null,null,null,null,null,null,null,null,null,null,null,null,null,null,null,null,null,null,null,null,null,null,"Fax"]
[]
[]
["Authorized corporation agent, if any"]
[]
[]
["Agent's title (e.g., accountant, outside consultant)",null,null,null,null,null,null,null,null,null,null,null,null,null,null,null,null,null,null,null,null,null,null,null,null,null,null,"Telephone",null,null,null,null,null,"Ext."]
[]
[]
["Agent's email address",null,null,null,null,null,null,null,null,null,null,null,null,null,null,null,null,null,null,null,null,null,null,null,null,null,null,"Fax"]
[]
[]
["2. AUTHORIZED PLACEMENT CERTIFICATE AND FISCAL PERIOD COVERED BY THIS MONITORING FORM"]
[null,null,null,"Date of issuance of authorized placement certificate: "]
[]
[null,null,null,"Expiration date of authorized placement certificate: "]
[]
[null,null,null,"Amount indicated on authorized placement certificate: "]
[]
[null,null,null,"Amount attributed to one or more qualified investors, if different:"]
[]
["Fiscal period from:",null,null,null,null,null,null,null,null,null,null,null,null,null,"to:"]
[null,null,null,null,null,null,null,null,"(yyyy-mm-dd)",null,null,null,null,null,null,null,"(yyyy-mm-dd)"]
[]
["3. REORGANIZATION OR ACQUISITION OF CONTROL"]
["During the fiscal year in question, until the date when the Authorized Placement Monitoring form is submitted, did the corporation:"]
[null,null,null,null,null,null,null,null,null,null,null,null,null,null,null,null,null,null,null,null,null,null,null,null,null,null,null,null,null,"Yes",null,"No"]
["— undergo an acquisition of control giving rise to a deemed year end?"]
[]
["— acquire an interest in another corporation or partnership?"]
[]
["— undergo a reorganization (e.g., merger, liquidation, bulk purchase or sale of assets)?"]
["If applicable, specify the date and nature of the changes:"]
[]
["Date"]
[null,null,null,null,null,null,null,null,"(yyyy-mm-dd)"]
[]
[]
["4. INFORMATION ABOUT THE CORPORATION AND THE USE OF THE FUNDS RECEIVED "]
[null,null,null,null,null,null,null,null,null,null,null,null,null,null,null,null,null,null,null,null,null,null,null,null,null,null,null,null,null,null,"Yes",null,"No"]
[]
["During the particular taxation year, was your corporation: "]
[]
["—  ","a Canadian-controlled private corporation;"]
[]
["—  ","carrying on a business in Québec;"]
[]
["—  ","with an establishment in Québec."]
[]
["If no, please explain:"]
[]
[]
[null,null,null,null,null,null,null,null,null,null,null,null,null,null,null,null,null,null,null,null,null,null,null,null,null,null,null,null,null,null,"Yes",null,"No"]
[]
["Has the proportion of your corporation's activities carried on in Québec changed since "]
["the previous taxation year? If yes, please explain:"]
[]
[]
[]
["Indicate the total number of employees employed by your corporation for the particular fiscal period. The total number of employees must include all of the corporation's employees (whether they work full-time or part-time, if they were employed by the corporation for the whole year or a shorter period)."]
[]
[]
[]
["Indicate the number of employees hired during the particular fiscal period, by job title, and indicating whether the hiring was planned when the application for an authorized placement certificate was filed."]
[]
[]
[]
[]
[null,"Number of employees hired",null,null,null,null,null,null,null,null,null,"Job title",null,null,null,null,null,null,null,null,null,null,null,null,null,null,null,"Hiring planned                       "]
[null,"Example: 8",null,null,null,null,null,null,null,null,null,"Programmers",null,null,null,null,null,null,null,null,null,null,null,null,null,null,null,"Yes"]
[null,"Example: 1",null,null,null,null,null,null,null,null,null,"Programmer",null,null,null,null,null,null,null,null,null,null,null,null,null,null,null,"No"]
[]
[]
[]
[]
[]
["Please check the category or categories that best correspond to the eligible activities carried out by your corporation."]
[]
["1)","Life sciences, more specifically:"]
[]
[null," research, development, production and marketing of medications for human and animal health;\n design, development, manufacturing and commercialization of physical or digital medical products, other than medications;\n research, development, production and marketing of natural health products;"]
["2)","Manufacturing or processing;"]
[]
["3)","Green technologies, "]
[null,"that is, manufacturing or processing and research and development for the commercial use of technologies that boost energy efficiency or energy savings, or reduce greenhouse gas emissions or the environmental impact;"]
[]
["4)","Artificial intelligence,"]
[null,"that is, the design and development of artificial intelligence solutions; "]
[]
["5)","Information technologies,"]
[null,"that is, computer and peripheral equipment manufacturing, semi-conductor and other electronic component manufacturing, radio and television broadcasting and wireless communications equipment manufacturing, software publishing, video game publishing, data processing, data hosting and related services, and computer systems design and related services."]
[]
["Check if applicable"]
[]
["a)","Your corporation has associated corporations during the particular fiscal period;"]
["  "]
["b)  ","Complete Appendix A;"]
[]
["c)  ","Attach the \"Share Issue Report\" form if the six-month period following the date of issue of the "]
[null,"authorized placement certificate has expired and the report has not yet been filed;"]
[]
[]
["d)  ","The activities carried on by the corporation are mainly activities in the manufacturing or processing sector "]
[]
[null,"covered in point (2) of the eligible activities and, during the particular fiscal period, the funds resulting from the share issuance were used for other purposes than to improve the use of or connection to new technologies or to integrate technologies enabling, in particular, digitization or automation of the business’s activities."]
[]
[]
["e)","In Appendices B and C, describe the use of the funds resulting from the issuance of shares of your "]
[null,"corporation's capital stock in relation to the qualified placement certificate issued;"]
[]
["f)","For the particular fiscal period, did the corporation use the funds resulting from the issuance of shares for one of the purposes listed below? If yes, indicate the amount of the expenditure incurred for the particular fiscal period:"]
[null,null,null,null,null,null,null,null,null,null,null,null,null,null,null,null,null,null,null,null,null,null,null,null,null,null,"Yes",null,"No",null,"Amount"]
["●","making investments outside Québec;"]
[]
["●","purchasing land for resale;"]
[]
["●","repaying a debt;"]
[]
["●","lending money;"]
[]
["●","purchasing, acquiring or subscribing shares of other corporations, "]
[null,"an interest in partnerships or in trusts;"]
[]
["●","purchasing a business;"]
["●","paying dividends, repaying principal or any other disbursement to a shareholder "]
["●"]
[null,"of the corporation or a person related to such a shareholder;"]
[]
["●","purchasing shares of its capital stock;"]
[]
["●","in relation to eligible information technology activities whose content "]
[null,"encourages violence, sexism, racism or any other form of discrimination or comprises explicit sex scenes or graphic representations of such scenes or allows the hosting, production or exchange of such content."]
[]
["5. MANDATORY DOCUMENTS TO ENCLOSE WITH THIS APPLICATION (check off the documents enclosed)"]
["—  ","Non-consolidated financial statements1 of the corporation and of all the associated corporations "]
[null,"for the particular fiscal period;"]
[]
["—  ","Non-consolidated trial balances of the corporation and of all the associated corporations "]
["      auxquelles la société est associée; ","for the particular fiscal period; "]
[]
["—  ","Consolidated income statement in Excel format of the corporation and of all the associated corporations "]
["     ","for the particular fiscal period; "]
[]
["—  ","Corporate organization chart identifying the shareholders and associated corporations "]
["     ","(the percentage shareholding of each shareholder must be presented);"]
[]
["—  ","Documents supporting Appendix B (contracts, invoices and any other agreements);"]
[]
["—  ","Corporate organization chart showing all of the corporation's employees and identifying new employees;"]
[]
[]
["—  ","Documents supporting Appendix C (employment contract, resumé, pay stub"]
[null,"and record of employment);"]
[]
[]
["—  ","Information requested in section 4;"]
[]
["—  ","Income tax return CO-17 (including the appendices) of the corporation and all the associated corporations "]
["   ","for the particular taxation year; "]
[]
["—   ","If applicable, duly signed power of attorney designating an agent to represent the corporation"]
[null,"or partnership in its dealings with Investissement Québec. "]
[null,"You can use the model available on Investissement Québec's website: "]
[null,"http://www.investquebec.com/documents/qc/formulaires/Procuration_fr.doc"]
["If any of the documents are not enclosed, please explain why."]
[]
[1,"Financial statements may be in draft form provided you send us the final statements as soon as they become available."]
[]
[]
[]
["6.  ","DECLARATION OF THE AUTHORIZED CORPORATION REPRESENTATIVE OR AGENT "]
["I, the undersigned, duly authorized representative or agent of the corporation, declare that the information provided in this form, the appendices and the related documents is complete and accurate in all respects."]
["I, the undersigned, duly authorized representative or agent of the corporation, declare that the corporation has been sure to respect the obligations set out in the Securities Act and that it acknowledges that Investissement Québec has incurred no liability in this respect."]
[]
["I, the undersigned, duly authorized representative or agent of the corporation, authorize the Tax Measures Department to communicate with Revenu Québec to obtain information that could prove necessary for the examination of the corporation's respect of the eligibility conditions."]
[]
[]
["Finally, I certify that the corporation has not modified the contents of this form."]
[]
["Signature of the corporation's or partnership's \nauthorized representative or agent",null,null,null,null,null,null,null,null,null,null,null,null,null,null,null,null,null,null,null,null,null,null,"Date"]

{"sheet":"Appendix A-Gross income","index":2,"n_rows":37,"n_cols":9,"rows_kept":37,"cut":false,"hidden":false,"merged":[[36,0,36,8],[8,0,8,6],[17,3,17,4],[9,0,9,4],[10,0,10,4],[13,0,13,6],[14,3,14,4],[15,3,15,4],[16,3,16,4],[28,3,28,4],[29,3,29,4],[30,3,30,4],[27,6,27,7],[28,6,28,7],[29,6,29,7],[24,6,24,7],[33,0,33,4],[24,3,24,4],[25,3,25,4],[26,3,26,4],[25,6,25,7],[26,6,26,7],[30,6,30,7],[31,6,31,7],[32,6,32,7],[27,3,27,4],[31,3,31,4],[32,0,32,4],[17,6,17,7],[18,6,18,7],[19,6,19,7],[20,6,20,7],[21,6,21,7],[22,6,22,7],[23,6,23,7],[18,3,18,4],[19,3,19,4],[20,3,20,4],[21,3,21,4],[22,3,22,4],[23,3,23,4],[17,9,17,14],[19,9,19,10],[0,7,0,8],[9,6,9,7],[12,2,12,4],[10,6,10,7],[14,6,14,7],[15,6,15,7],[16,6,16,7],[1,2,1,6],[7,0,7,8],[5,0,5,8],[2,0,2,8],[3,0,3,8],[4,0,4,8],[6,0,6,8]]}
[null,null,null,null,null,null,null,{"$f":"Instructions!N1","v":"Synergy Capital\n(version: 2021-06)"}]
[]
["Appendix A – Authorized Placement Monitoring"]
["Eligible Activities"]
["(Appendix A is an integral part of this form)"]
["A corporation respects this eligibility condition when the activities it carries on, for the particular fiscal period, are mainly eligible activities."]
["Description of trial balance income items"]
["List all income accounts on the trial balance that make up the gross income indicated in the non-consolidated financial statements for the particular fiscal period (see notes 1 and 2).\n\nFor each account, please describe the nature of the income reported in each income item in your trial balance and identify the gross income from eligible and non-eligible activities."]
[]
["Name of the corporation",null,null,null,null,null,"IQ file number "]
[{"$f":"IF('Authorized Placement Monitoring'!A6=\"\",\"\",'Authorized Placement Monitoring'!A6)","v":""},null,null,null,null,null,{"$f":"IF('Authorized Placement Monitoring'!U9=\"\",\"\",'Authorized Placement Monitoring'!U9)","v":""}]
[]
[null,null,"Fiscal period from:",null,null,{"$f":"IF('Authorized Placement Monitoring'!I53=\"\",\"\",'Authorized Placement Monitoring'!I53)","v":""},"to:",{"$f":"IF('Authorized Placement Monitoring'!Q53=\"\",\"\",'Authorized Placement Monitoring'!Q53)","v":""}]
[]
["Name of the corporation or associated corporation if applicable","Account #","Account name","Description of products or services that generated the income included in this account",null,"Amount of gross income from eligible activities \n(note 1)","Amount of gross income from non-eligible activities \n(note 1)",null,"Percentage of eligible activities"]
["ABC Company","Example:\n#4010","Sales of products","Manufacturing of computer hardware",null,125000,0,null,{"$f":"F16/(SUM(G$16:G$18)+SUM(F$16:F$18))","v":0.5}]
["ABC Company","Example:\n#4020","Service revenue","Design of information system",null,25000,0,null,{"$f":"F17/(SUM(G$16:G$18)+SUM(F$16:F$18))","v":0.1}]
["XYZ Company","Example:\n#4001","Sales revenue ","Book publishing",null,0,100000,null,{"$f":"F18/(SUM(G$16:G$18)+SUM(F$16:F$18))","v":0}]
[null,null,null,null,null,null,null,null,{"$f":"F19/($F$33+$G$33)","v":{"$error":"#DIV/0!"}}]
[null,null,null,null,null,null,null,null,{"$f":"F20/($F$33+$G$33)","v":{"$error":"#DIV/0!"}}]
[null,null,null,null,null,null,null,null,{"$error":"#DIV/0!"}]
[null,null,null,null,null,null,null,null,{"$error":"#DIV/0!"}]
[null,null,null,null,null,null,null,null,{"$error":"#DIV/0!"}]
[null,null,null,null,null,null,null,null,{"$error":"#DIV/0!"}]
[null,null,null,null,null,null,null,null,{"$error":"#DIV/0!"}]
[null,null,null,null,null,null,null,null,{"$error":"#DIV/0!"}]
[null,null,null,null,null,null,null,null,{"$error":"#DIV/0!"}]
[null,null,null,null,null,null,null,null,{"$error":"#DIV/0!"}]
[null,null,null,null,null,null,null,null,{"$error":"#DIV/0!"}]
[null,null,null,null,null,null,null,null,{"$error":"#DIV/0!"}]
[null,null,null,null,null,null,null,null,{"$error":"#DIV/0!"}]
[null,null,null,null,null,null,null,null,{"$error":"#DIV/0!"}]
["Breakdown of gross income between eligible and non-eligible activities",null,null,null,null,{"$f":"SUM(F19:F32)","v":0},{"$f":"SUM(G19:H32)","v":0},null,{"$f":"SUM(I19:I32)","v":{"$error":"#DIV/0!"}}]
["Gross income for particular fiscal period (note 2)",null,null,null,null,{"$f":"F33+G33","v":0}]
[]
["Note 1: The gross income must be presented net of transactions between associated corporations."]
["Note 2: The amount presented as gross income must correspond to the gross income presented in the consolidated statement of income of the corporation and all the associated corporations during the particular fiscal period."]

{"sheet":"Appendix B-Use of funds","index":3,"n_rows":37,"n_cols":8,"rows_kept":37,"cut":false,"hidden":false,"merged":[[29,0,29,6],[6,0,6,3],[16,2,16,3],[17,2,17,3],[19,2,19,3],[20,2,20,3],[21,2,21,3],[22,2,22,3],[23,2,23,3],[24,2,24,3],[8,0,8,5],[25,2,25,3],[12,0,12,1],[22,7,22,8],[23,7,23,8],[18,7,18,8],[18,2,18,3],[27,0,27,6],[25,7,25,8],[24,7,24,8],[19,7,19,8],[20,7,20,8],[0,5,0,8],[1,0,1,8],[2,0,2,8],[3,0,3,8],[4,0,4,8],[5,0,5,4],[7,0,7,1],[16,7,16,8],[17,7,17,8],[21,7,21,8],[14,0,14,2],[5,5,5,6]]}
[null,null,null,null,null,{"$f":"Instructions!N1","v":"Synergy Capital\n(version: 2021-06)"}]
["Appendix B – Authorized Placement Monitoring"]
[" Use of Funds from Share Issuance"]
["(Appendix B is an integral part of this form)"]
["You must provide details on the use of the funds resulting from the issuance of shares further to the issue of the authorized placement certificate."]
["Name of the corporation",null,null,null,null,"IQ file number "]
[{"$f":"IF('Authorized Placement Monitoring'!A6=\"\",\"\",'Authorized Placement Monitoring'!A6)","v":""},null,null,null,null,{"$f":"IF('Authorized Placement Monitoring'!U9=\"\",\"\",'Authorized Placement Monitoring'!U9)","v":""}]
[]
[]
["Fiscal period from:",{"$f":"IF('Authorized Placement Monitoring'!I53=\"\",\"\",'Authorized Placement Monitoring'!I53)","v":""},"to",{"$f":"IF('Authorized Placement Monitoring'!Q53=\"\",\"\",'Authorized Placement Monitoring'!Q53)","v":""}]
[null,"(yyyy-mm-dd)",null,"(yyyy-mm-dd)"]
[]
["Amount indicated on authorized placement certificate: ",null,null,{"$f":"IF('Authorized Placement Monitoring'!AB49=\"\",\"\",'Authorized Placement Monitoring'!AB49)","v":""}]
[]
["Amount attributed to one or more qualified investors:",null,null,{"$f":"'Authorized Placement Monitoring'!AB51","v":0}]
[]
["Description of projected investment expenditures in accordance with the description presented when the application for an authorized placement certificate was filed","Amount anticipated in the application or balance of amount anticipated in the previous fiscal period\n(note 1)","Expenditure incurred in the particular fiscal period \n(note 2)",null,"Balance of investments to be made in subsequent fiscal periods","Date of investment, if applicable","Documentation attached\n(note 3)","Comments, if any"]
[null,null,null,null,{"$f":"B18-C18","v":0}]
[null,null,null,null,{"$f":"B19-C19","v":0}]
[null,null,null,null,{"$f":"B20-C20","v":0}]
[null,null,null,null,{"$f":"B21-C21","v":0}]
[null,null,null,null,{"$f":"B22-C22","v":0}]
[null,null,null,null,{"$f":"B23-C23","v":0}]
[null,null,null,null,0]
[]
["Total",{"$f":"SUM(B18:B25)","v":0},{"$f":"SUM(C18:D25)","v":0},null,{"$f":"B26-C26","v":0}]
[]
["Note 1: The total amount must correspond to the lesser of the amount indicated in the authorized placement certificate and the amount of funds received in consideration for the issuance of shares of the corporation's capital stock and attributed to one or more qualified investors."]
["Note 2: For a salary expenditure, complete Appendix C: Description of Employees."]
["Note 3: Attach supporting documents for each investment made during the particular financial period and choose the document listed in the dropdown menu."]
[]
[]
["Invoice"]
["Contract or agreement"]
["Lease"]
["Employees – Appendix C"]
["Other, specify in comments"]

{"sheet":"Appendix C-Employee description","index":4,"n_rows":31,"n_cols":10,"rows_kept":31,"cut":false,"hidden":false,"merged":[[12,9,13,9],[12,2,13,3],[23,0,23,6],[12,0,13,0],[12,1,13,1],[12,4,13,4],[12,5,12,6],[12,7,13,7],[22,2,22,3],[14,2,14,3],[15,2,15,3],[16,2,16,3],[17,2,17,3],[12,8,13,8],[32,6,34,6],[32,0,33,0],[32,1,33,1],[32,3,33,4],[32,5,34,5],[25,0,25,9],[18,2,18,3],[19,2,19,3],[20,2,20,3],[21,2,21,3],[0,4,0,9],[4,0,4,9],[2,0,2,9],[7,0,7,1],[8,0,8,1],[6,0,6,1],[1,0,1,9],[3,0,3,9],[6,5,6,6],[7,5,7,6]]}
[null,null,null,null,{"$f":"Instructions!N1","v":"Synergy Capital\n(version: 2021-06)"}]
["Appendix C – Authorized Placement Monitoring"]
[" Use of Funds from Share Issuance for Salary Expenditure, if Applicable"]
["(Appendix C is an integral part of this form)"]
["You must provide details on the salary expenditure indicated in Appendix B and incurred during the particular fiscal period."]
[]
["Name of the corporation",null,null,null,null,"IQ file number "]
[{"$f":"IF('Authorized Placement Monitoring'!A6=\"\",\"\",'Authorized Placement Monitoring'!A6)","v":""},null,null,null,null,{"$f":"IF('Authorized Placement Monitoring'!U9=\"\",\"\",'Authorized Placement Monitoring'!U9)","v":""}]
[]
["Fiscal period from:",{"$f":"IF('Authorized Placement Monitoring'!I53=\"\",\"\",'Authorized Placement Monitoring'!I53)","v":""},"to",{"$f":"IF('Authorized Placement Monitoring'!Q53=\"\",\"\",'Authorized Placement Monitoring'!Q53)","v":""}]
[null,"(yyyy-mm-dd)",null,"(yyyy-mm-dd)"]
[]
["Employee's name","S.I.N.","Employee's job title",null,"Hiring date","Employment period during the particular fiscal period",null,"Gross salary paid for this employment period \n(note 2)","Is this employee still employed by the corporation when the Authorized Placement Monitoring form for the particular fiscal period is filed? (note 3)","Comments, if any"]
[null,null,null,null,null,"From:\n(yyyy-mm-dd)","To:\n (yyyy-mm-dd)"]
[]
[]
[]
[]
[]
[]
[]
[]
[]
["Total",null,null,null,null,null,null,{"$f":"SUM(H15:H23)","v":0}]
[]
["Note 1: Attach supporting documents for each employee (hiring contract, resumé and payroll register)."]
["Note 2: The total amount must correspond to the amount indicated in Appendix B for the salary expenditure, if applicable."]
["Note 3: If the employee is no longer employed by the corporation, attach the record of employment."]
[]
["yes"]
["no"]

{"sheet":"List of establishments","index":5,"n_rows":33,"n_cols":27,"rows_kept":33,"cut":false,"hidden":false,"merged":[[1,0,1,1],[11,0,11,1],[9,4,9,5],[10,4,10,5],[2,0,2,1],[8,4,8,5],[6,0,6,1],[3,0,3,1],[4,0,4,1]]}
[null,{"$f":"Instructions!N1","v":"Synergy Capital\n(version: 2021-06)"}]
["Authorized Placement Monitoring"]
["List of Establishments"]
["If the corporation has more than one establishment"]
[]
["Name of the corporation"]
[{"$f":"IF('Authorized Placement Monitoring'!A6=\"\",\"\",'Authorized Placement Monitoring'!A6)","v":""},null,null,""]
[]
["Fiscal period from ",{"$f":"IF('Authorized Placement Monitoring'!I53=\"\",\"\",'Authorized Placement Monitoring'!I53)","v":""},null,"",""]
["Fiscal period to ",{"$f":"IF('Authorized Placement Monitoring'!Q53=\"\",\"\",'Authorized Placement Monitoring'!Q53)","v":""},null,"",""]
["File number ",{"$f":"IF('Authorized Placement Monitoring'!U9=\"\",\"\",'Authorized Placement Monitoring'!U9)","v":""},null,"",""]
["Address of all establishments (1 address per line)"]
["Principal address"]
[null,{"$f":"IF('Authorized Placement Monitoring'!A19:Z19=\"\",\"\",'Authorized Placement Monitoring'!A19:Z19)","v":""},"","","","","","","","","","","","","","","","","","","","","","","","",""]
["Establishment 1"]
[]
["Establishment 2"]
[]
["Establishment 3"]
[]
["Establishment 4"]
[]
["Establishment 5"]
[]
["Establishment 6"]
[]
["Establishment 7"]
[]
["Establishment 8"]
[]
["Establishment 9"]
[]
["Establishment 10"]